bitfinex/quotes_ETHUSD_20220305
["timestamp","ask_amount","ask_price","bid_price","bid_amount"]
[1646461779486,1.40706965,2628.8,2628.3,0.69595808]
[1646461779688,1.40706965,2628.8,2628.3,0.69857144]
[1646461780695,1.40706965,2628.8,2628.3,0.69595808]
[1646461780894,1.40706965,2628.8,2628.3,0.69857144]
[1646461781694,0.3815,2628.9,2628.3,0.69857144]
[1646461781895,0.3815,2628.9,2628.3,0.69595808]
[1646461782095,1.40736417,2628.8,2628.3,0.69863297]
[1646461782496,1.40736417,2628.8,2628.3,0.00267489]
[1646461782696,4.90736417,2628.8,2628.3,0.00267489]
[1646461782931,1.4073837,2628.7,2628.2,0.84515327]
[1646461783333,0.3815,2628.9,2628.3,0.69863297]
[1646461783532,3.5,2629.0,2628.4,0.69595808]
[1646461783733,1.40770102,2628.9,2628.4,0.69595808]
[1646461784135,1.40770102,2628.9,2628.3,0.69595808]
[1646461784632,1.40770102,2628.9,2628.3,0.69863297]
[1646461785236,1.78920102,2628.9,2628.3,0.69863297]
[1646461785440,0.3815,2628.9,2628.3,0.69595808]
[1646461785640,1.40789022,2628.8,2628.3,0.69842188]
[1646461785839,4.90789022,2628.8,2628.3,0.69842188]
[1646461786039,1.40789022,2628.7,2628.3,0.69842188]
[1646461786238,0.3815,2628.9,2628.3,0.69842188]
[1646461786438,1.4078936,2628.8,2628.3,0.69842188]
[1646461786695,1.4078936,2628.8,2628.3,0.69595808]
[1646461786890,1.4078936,2628.7,2628.3,0.69842182]
[1646461787091,1.40791999,2628.6,2628.3,0.69842182]
[1646461787290,3.5,2629.0,2628.3,0.69842182]
[1646461787492,1.40791828,2628.9,2628.3,0.69842182]
[1646461787892,1.40791828,2628.9,2628.3,0.69595808]
[1646461788093,1.40791828,2628.9,2628.3,0.69842191]
[1646461789092,1.40791828,2628.9,2628.3,0.69595808]
[1646461789296,1.40791828,2628.9,2628.3,0.69842948]
[1646461789493,3.5,2628.8,2628.3,0.69842948]
[1646461789693,1.40862779,2628.7,2628.3,0.69842948]
[1646461789892,4.58219386,2629.0,2628.3,0.69842948]
[1646461790094,1.40862662,2628.9,2628.3,0.69842948]
[1646461790329,1.79012662,2628.9,2628.3,0.69595808]
[1646461790537,1.79012662,2628.9,2628.3,0.69844575]
[1646461790538,1.40862662,2628.8,2628.3,0.69844575]
[1646461791347,1.40862662,2628.8,2628.3,0.69595808]
[1646461791538,4.90862662,2628.8,2628.3,0.69844579]
[1646461791740,1.40862662,2628.7,2628.3,0.69844579]
[1646461791939,3.5,2628.8,2628.3,0.69844579]
[1646461792137,1.40862634,2628.7,2628.3,0.69844579]
[1646461792337,1.40862634,2628.7,2628.3,0.84764098]
[1646461792539,1.40862634,2628.7,2628.4,0.14919519]
[1646461792739,1.40862634,2628.7,2628.3,0.69595808]
[1646461792740,1.40862634,2628.7,2628.5,0.14919519]
[1646461792937,1.40862634,2628.7,2628.6,0.14919519]
[1646461793138,4.9071533,2628.7,2628.3,0.00248601]
[1646461793338,4.20069386,2628.7,2628.3,0.00248601]
[1646461793740,4.20069386,2628.7,2628.1,0.0024783]
[1646461793938,4.20069386,2628.7,2628.3,0.00080745]
[1646461794383,3.5,2628.7,2628.3,0.00080745]
[1646461794986,1.21726949,2628.2,2628.1,0.0024783]
[1646461795189,0.98610805,2628.2,2628.0,0.69595808]
[1646461795591,0.98610805,2628.2,2627.9,0.69595808]
[1646461795990,0.98610805,2628.2,2628.0,0.69595808]
[1646461796192,0.70109999,2628.8,2628.3,4.8]
[1646461796390,2.06989999,2629.0,2628.4,4.3385]
[1646461796589,1.78176065,2629.5,2628.4,4.3385]
[1646461796590,0.70109999,2629.1,2628.4,4.3385]
[1646461796790,0.70109999,2629.3,2628.5,1.07745808]
[1646461796990,2.45029999,2629.5,2628.7,1.07745808]
[1646461797191,2.45029999,2629.5,2629.1,0.87521108]
[1646461797192,1.3688,2629.5,2629.1,0.87521108]
[1646461798643,1.3688,2629.5,2629.2,3.5]
[1646461799141,0.00096,2629.7,2629.2,4.4513]
[1646461799341,0.00096,2629.9,2629.2,5.9083]
[1646461799541,0.92916353,2630.2,2629.6,0.01250231]
[1646461799848,1.11916353,2630.9,2629.7,0.8385]
[1646461800041,0.92916353,2631.1,2629.9,14.9815]
[1646461800243,0.92916353,2631.2,2630.4,1.17297003]
[1646461800449,0.92916353,2631.2,2630.3,3.957]
[1646461800644,1.18808279,2631.3,2630.3,1.4078436]
[1646461800645,0.92916353,2631.1,2630.3,1.4078436]
[1646461800844,0.92916353,2631.2,2630.3,1.4078436]
[1646461801045,0.92916353,2631.1,2630.3,1.4078436]
[1646461801446,0.0028273,2630.9,2630.3,0.9508436]
[1646461801728,0.9598398,2630.9,2630.1,3.12379651]
[1646461801930,0.9598398,2630.9,2630.1,1.90169]
[1646461802130,0.9598398,2630.9,2630.2,3.5]
[1646461802329,0.92916353,2631.0,2630.2,3.5]
[1646461802533,0.00282738,2630.6,2630.3,0.950909]
[1646461802933,0.00282738,2630.6,2630.4,1.90173]
[1646461803530,0.00096,2630.9,2630.5,1.05765344]
[1646461803730,0.00269141,2630.6,2630.5,1.05765344]
[1646461804734,0.00096,2631.0,2630.5,1.05765344]
[1646461805037,0.19,2631.2,2630.5,2.95925174]
[1646461805038,0.00269139,2630.7,2630.5,2.95925174]
[1646461805838,0.00096,2631.3,2630.5,2.95925174]
[1646461806040,0.00269138,2630.7,2630.5,2.95785302]
[1646461806241,0.00269138,2630.7,2630.6,3.5]
[1646461806839,0.00269138,2630.7,2630.6,4.5]
[1646461807040,0.00096,2631.6,2630.6,6.02219]
[1646461807238,0.00096,2631.6,2630.8,0.95074]
[1646461807440,0.01085593,2631.2,2630.9,3.5]
[1646461807644,0.01085593,2631.2,2630.9,4.49907289]
[1646461807839,0.01085593,2631.2,2630.9,5.49907289]
[1646461808039,0.01085593,2631.2,2630.9,6.90668289]
[1646461808238,0.00096,2631.8,2630.9,6.90668289]
[1646461808440,0.00096,2631.8,2631.0,0.95061]
[1646461808640,0.00191438,2631.2,2631.1,3.5]
[1646461808842,0.00191438,2631.2,2631.1,4.5]
[1646461809291,0.00191438,2631.2,2631.1,6.33461626]
[1646461809491,0.00096,2631.8,2631.1,6.33461626]
[1646461809696,0.00191438,2631.3,2631.1,6.33461626]
[1646461809894,0.00191438,2631.3,2631.2,3.5]
[1646461810693,0.00096,2631.8,2631.2,3.5]
[1646461810893,0.0028921,2631.4,2631.2,3.5]
[1646461811094,0.0028921,2631.4,2631.1,2.83461626]
[1646461811692,0.0028921,2631.4,2631.1,1.83461626]
[1646461811893,0.00096,2631.8,2631.1,2.83461626]
[1646461812094,0.0028921,2631.4,2631.1,1.83461626]
[1646461812294,0.0028921,2631.4,2631.1,2.83461626]
[1646461812495,0.0028921,2631.4,2631.1,1.83461626]
[1646461813138,1.28259937,2631.7,2631.1,1.83461626]
[1646461813343,0.00096,2631.8,2631.1,1.83461626]
[1646461813344,0.0028921,2631.4,2631.1,1.83461626]
[1646461813744,1.28549147,2631.4,2631.1,1.83461626]
[1646461813942,0.0028921,2631.4,2631.1,1.83461626]
[1646461814343,0.0028921,2631.4,2630.6,7.5607955]
[1646461814344,1.28161402,2631.6,2630.6,7.5607955]
[1646461814545,1.28161402,2631.6,2631.2,0.91730813]
[1646461814546,0.0028921,2631.4,2631.2,0.91730813]
[1646461815144,0.0028921,2631.4,2631.0,0.17173722]
[1646461815549,1.28161402,2631.6,2631.0,0.17173722]
[1646461815746,0.00279664,2631.4,2631.0,0.17173722]
[1646461816785,1.60357844,2631.7,2631.0,0.17173722]
[1646461816786,1.24976873,2631.6,2631.0,0.17173722]
[1646461816987,0.00279667,2631.3,2631.0,0.17173722]
[1646461817393,1.2525654,2631.3,2631.0,0.17173722]
[1646461817589,0.89832159,2631.2,2631.0,0.17173722]
[1646461817790,1.24976873,2631.1,2631.0,0.17173722]
[1646461818592,12.84976873,2631.1,2631.0,0.17173722]
[1646461818993,1.24976873,2631.1,2631.0,0.17173722]
[1646461819592,1.24976873,2631.1,2631.0,0.07173722]
[1646461819793,1.24976873,2631.1,2629.9,5.55465243]
[1646461819993,1.24976873,2631.1,2631.0,0.07173722]
[1646461820437,2.319,2631.3,2631.0,0.07173722]
[1646461820637,0.38246,2631.6,2631.0,0.07173722]
[1646461820841,2.98,2631.7,2631.0,0.07173722]
[1646461820842,1.43944773,2631.5,2631.0,0.07173722]
[1646461821038,0.19,2631.5,2631.0,0.07173722]
[1646461821238,0.19,2631.6,2631.0,0.07173722]
[1646461821440,2.98096,2631.7,2631.0,0.07173722]
[1646461821441,0.00096,2631.7,2631.0,0.07173722]
[1646461821737,0.00269817,2631.4,2631.0,0.07173722]
[1646461822737,0.00096,2631.6,2631.0,0.07173722]
[1646461822937,0.00271519,2631.3,2631.0,0.07173722]
[1646461823944,1.24907642,2631.6,2631.0,0.07173722]
[1646461824187,0.0027152,2631.3,2631.0,0.07173722]
[1646461825085,6.41965273,2631.8,2630.9,4.45595331]
[1646461825289,0.0027152,2631.3,2630.9,4.45595331]
[1646461825489,0.0027152,2631.3,2631.1,0.07173722]
[1646461826390,1.24896266,2631.6,2631.1,0.07173722]
[1646461826590,0.00271136,2631.3,2631.1,0.07173722]
[1646461827592,1.16721786,2631.4,2631.1,0.07173722]
[1646461827836,0.00271136,2631.3,2631.1,0.07173722]
[1646461828737,1.16721786,2631.4,2631.1,0.07173722]
[1646461828935,0.00271136,2631.3,2631.1,0.07173722]
[1646461829740,0.00271136,2631.3,2631.1,0.07172722]
[1646461829941,1.25004465,2631.3,2631.1,0.07172722]
[1646461830340,1.25275687,2631.3,2631.1,0.07172722]
[1646461830540,1.25275687,2631.3,2630.4,0.25]
[1646461830741,1.25371687,2631.3,2630.2,0.95097]
[1646461830942,1.25371687,2631.3,2630.8,0.07172722]
[1646461831145,1.25004465,2631.3,2630.8,0.07172722]
[1646461831343,0.00271233,2631.0,2630.8,0.07172722]
[1646461832286,1.25100465,2631.3,2630.8,0.07172722]
[1646461832586,0.00271231,2631.0,2630.8,0.07172722]
[1646461833287,1.13517484,2631.0,2630.8,0.07172722]
[1646461833488,1.13246253,2631.0,2630.8,0.07172722]
[1646461833695,1.13517465,2631.0,2630.8,0.07172722]
[1646461834693,1.13246253,2631.0,2630.8,0.07172722]
[1646461834895,1.25203074,2630.9,2630.8,0.07172722]
[1646461835341,0.04503799,2630.2,2630.0,2.11846]
[1646461835546,0.04503799,2630.2,2630.0,0.95106]
[1646461836146,0.04775035,2630.2,2630.0,0.95106]
[1646461837146,0.04503799,2630.2,2630.0,0.95106]
[1646461837347,0.0477504,2630.2,2630.0,0.95106]
[1646461838350,0.04503799,2630.2,2630.0,1.9020195]
[1646461838548,0.0477504,2630.2,2630.0,1.9020195]
[1646461839195,0.0477504,2630.2,2630.1,1.01038784]
[1646461839593,0.0477504,2630.2,2630.1,4.79536474]
[1646461839594,0.04503799,2630.2,2630.1,4.79536474]
[1646461839793,0.04503799,2630.2,2630.1,5.79536474]
[1646461839794,0.0477504,2630.2,2630.1,5.79536474]
[1646461840194,0.0477504,2630.2,2630.1,2.29536474]
[1646461840593,0.0477504,2630.2,2630.1,1.29536474]
[1646461840797,0.04503799,2630.2,2630.1,1.29536474]
[1646461841596,0.04503799,2630.2,2630.1,1.67686474]
[1646461842096,0.04503799,2630.2,2630.1,1.29536474]
[1646461843142,0.04503799,2630.2,2630.1,0.28599264]
[1646461844145,0.04503799,2630.2,2630.0,0.28599264]
[1646461844344,0.04503799,2630.2,2630.1,0.28599264]
[1646461844644,0.04503799,2630.2,2630.0,0.95104]
[1646461844843,0.04503799,2630.2,2630.1,0.28599264]
[1646461847791,0.04503799,2630.2,2630.1,1.51428329]
[1646461850542,0.04503799,2630.2,2630.1,4.95296896]
[1646461850744,0.04503799,2630.2,2630.1,4.55228329]
[1646461851342,0.04503799,2630.2,2630.1,4.17078329]
[1646461851745,0.04503799,2630.2,2630.1,0.28599264]
[1646461851942,0.04503799,2630.2,2630.0,0.28599264]
[1646461852141,0.04503799,2630.2,2630.1,0.28599264]
[1646461852341,0.04503799,2630.2,2629.9,0.28599264]
[1646461853241,0.04503799,2630.2,2630.0,0.28599264]
[1646461853441,0.04503799,2630.2,2630.1,0.28599264]
[1646461853942,1.30820021,2630.2,2629.8,0.28599264]
[1646461854191,0.04503799,2630.2,2629.8,0.28599264]
[1646461855291,0.04765317,2630.2,2629.8,0.28599264]
[1646461856296,0.04503799,2630.2,2629.8,0.28599264]
[1646461856697,0.04765317,2630.2,2630.0,1.17818021]
[1646461856901,0.04765317,2630.2,2630.1,0.28599264]
[1646461857097,1.31133394,2630.2,2630.1,0.28599264]
[1646461857496,1.30871876,2630.2,2630.1,0.28599264]
[1646461861597,1.30721999,2630.2,2630.1,0.28599264]
[1646461862096,4.80721999,2630.2,2630.1,0.28599264]
[1646461862492,4.80721999,2630.2,2629.3,1.93779574]
[1646461862493,16.40721999,2630.2,2629.3,1.93779574]
[1646461862693,12.86368077,2630.1,2629.4,0.27990321]
[1646461862891,1.01142007,2629.8,2629.4,0.27990321]
[1646461863091,1.26368077,2629.7,2629.4,0.27990321]
[1646461863292,1.26368077,2629.7,2629.5,0.27990321]
[1646461863491,1.26368077,2629.7,2629.6,0.27990321]
[1646461863692,1.26368077,2629.7,2629.0,0.96769895]
[1646461864293,1.26368077,2629.7,2629.1,0.27990321]
[1646461864494,1.26368077,2629.7,2629.2,0.27990321]
[1646461864699,1.26368077,2629.7,2629.3,0.27990321]
[1646461864895,1.26368077,2629.7,2629.4,0.27990321]
[1646461865095,1.26368077,2629.7,2629.5,0.27990321]
[1646461865336,1.26368077,2629.7,2629.6,0.27990321]
[1646461865543,1.26368077,2629.7,2629.0,0.96769895]
[1646461865746,1.26368077,2629.7,2629.1,0.27990321]
[1646461865943,1.26368077,2629.7,2629.2,0.27990321]
[1646461866143,1.26368077,2629.7,2629.3,0.27990321]
[1646461866342,1.26368077,2629.7,2629.4,0.27990321]
[1646461866543,1.26368077,2629.7,2629.5,0.27990321]
[1646461866743,4.76368077,2629.7,2629.6,0.27990321]
[1646461867046,0.3815,2629.6,2628.9,2.4107]
[1646461867346,4.76368077,2629.5,2629.0,0.27952074]
[1646461867542,0.3815,2629.6,2629.0,0.27952074]
[1646461867543,1.26368077,2629.4,2629.0,0.27952074]
[1646461867746,1.91243954,2629.3,2629.0,0.27952074]
[1646461868044,0.19,2629.9,2628.4,1.1553]
[1646461868045,2.69226047,2629.2,2628.4,1.1553]
[1646461868243,1.4285797,2629.2,2628.5,0.27664371]
[1646461868844,0.3815,2629.2,2628.5,0.27664371]
[1646461869695,1.27091383,2629.1,2628.5,0.27664371]
[1646461869900,11.9815,2629.0,2628.6,0.27664371]
[1646461870097,11.6,2629.0,2628.7,0.27664371]
[1646461870296,11.6,2629.0,2628.3,0.0024766]
[1646461870698,12.63102851,2628.8,2628.3,0.27635021]
[1646461870900,11.6,2629.0,2628.4,0.27635021]
[1646461871098,1.26923068,2628.9,2628.5,0.27635021]
[1646461871297,0.1902,2629.3,2628.6,0.27635021]
[1646461871498,1.26913187,2629.2,2628.3,0.00247647]
[1646461871698,0.1902,2629.1,2628.3,0.00247647]
[1646461871900,1.26913187,2629.0,2628.3,0.27644078]
[1646461872098,1.65063187,2629.0,2628.4,1.38074034]
[1646461872300,0.5717,2629.2,2628.5,0.27644078]
[1646461872501,0.3815,2629.2,2628.5,0.27644078]
[1646461872941,11.9815,2629.2,2628.5,0.27644078]
[1646461874343,11.9815,2629.2,2628.6,0.27644078]
[1646461874639,11.9815,2629.2,2628.3,0.0008123]
[1646461874840,11.9815,2629.0,2628.3,0.0008123]
[1646461875445,0.96192529,2628.7,2628.3,0.0008123]
[1646461875644,11.9815,2629.0,2628.2,0.27845176]
[1646461875844,11.9815,2629.0,2628.3,0.00269701]
[1646461876244,11.9815,2629.1,2628.3,0.27867047]
[1646461876443,0.3815,2629.1,2628.4,0.27597346]
[1646461876697,0.3815,2629.1,2628.5,0.27597346]
[1646461876898,0.3815,2629.1,2628.4,0.97313345]
[1646461877199,11.9815,2629.1,2628.5,0.26942378]
[1646461877397,11.9815,2629.1,2628.5,0.02139571]
[1646461877599,11.9815,2629.1,2628.3,0.00278483]
[1646461877805,3.67226152,2629.3,2628.3,0.00278483]
[1646461877806,11.9815,2628.9,2628.3,0.00278483]
[1646461878100,11.9815,2628.9,2628.2,0.0024783]
[1646461878101,11.6,2628.7,2628.2,0.0024783]
[1646461878299,11.6,2628.7,2628.3,0.0027849]
[1646461878501,11.6,2628.5,2628.3,0.0027849]
[1646461879101,11.6,2628.5,2627.8,0.0024783]
[1646461879302,11.9815,2628.5,2627.8,0.0024783]
[1646461880558,13.08383452,2629.0,2628.0,1.02456071]
[1646461880755,13.08383452,2629.0,2628.1,0.0024783]
[1646461881355,12.1717,2629.0,2628.1,0.0024783]
[1646461881856,12.1717,2629.0,2628.3,0.0026774]
[1646461882660,0.00130285,2628.3,2628.1,0.0024783]
[1646461882858,0.00130285,2628.3,2628.0,1.02188306]
[1646461883056,0.00130285,2628.3,2628.0,1.97374306]
[1646461883658,0.00130285,2628.3,2628.0,1.02188306]
[1646461884291,0.00130285,2628.3,2628.0,1.0246822]
[1646461885090,0.00130285,2628.3,2628.0,1.02188306]
[1646461885293,0.00130285,2628.3,2628.1,0.19042]
[1646461886596,0.00130285,2628.3,2628.1,0.19321913]
[1646461887598,0.00130285,2628.3,2628.1,0.19042]
[1646461887848,0.00130285,2628.3,2628.1,0.19309061]
[1646461888745,0.00130285,2628.3,2628.1,0.19042]
[1646461888946,0.00130285,2628.3,2628.1,0.19309061]
[1646461889945,0.00130285,2628.3,2628.1,0.19042]
[1646461890147,0.00130285,2628.3,2628.1,0.19309061]
[1646461891251,0.00130285,2628.3,2628.1,0.19042]
[1646461891450,0.00130285,2628.3,2628.1,0.19313368]
[1646461892288,0.00130285,2628.3,2628.1,0.19042]
[1646461893689,0.00130285,2628.3,2628.1,0.19123746]
[1646461894695,0.00130285,2628.3,2628.1,0.19042]
[1646461895094,0.00130285,2628.3,2628.1,0.19333937]
[1646461895944,0.00130285,2628.3,2628.1,0.19042]
[1646461896345,0.00130285,2628.3,2628.1,0.19333937]
[1646461897247,0.00130285,2628.3,2628.1,0.19042]
[1646461897546,0.00130285,2628.3,2628.1,0.19333937]
[1646461898448,0.00130285,2628.3,2628.2,1.0237001]
[1646461898646,0.00130285,2628.3,2628.2,1.2892154]
[1646461901697,0.00130285,2628.3,2628.2,0.2655153]
[1646461909998,1.28069419,2628.7,2628.2,0.0255153]
[1646461909999,0.28199704,2628.7,2628.2,0.0255153]
[1646461910654,3.6902,2629.0,2628.2,0.0255153]
[1646461910855,3.6902,2629.0,2628.4,0.1904]
[1646461911454,0.1902,2628.9,2628.4,0.1904]
[1646461912254,3.5,2629.0,2628.4,0.1904]
[1646461912255,3.6902,2629.0,2628.4,0.1904]
[1646461912855,4.38380821,2629.0,2628.4,0.1904]
[1646461913661,0.69360821,2628.9,2628.4,0.1904]
[1646461914290,3.5,2628.8,2628.4,0.1904]
[1646461914491,0.69360821,2628.9,2628.4,0.1904]
[1646461915292,12.29360821,2628.9,2628.4,0.1904]
[1646461915896,3.5,2628.8,2628.4,0.1904]
[1646461916696,0.69360821,2628.9,2628.4,0.1904]
[1646461918245,3.5,2628.8,2628.4,0.1904]
[1646461918848,15.1,2628.8,2628.4,0.1904]
[1646461919046,15.79360821,2628.8,2628.4,0.1904]
[1646461919647,12.29360821,2628.8,2628.4,0.1904]
[1646461919848,15.79360821,2628.8,2628.4,0.1904]
[1646461920047,4.19360821,2628.8,2628.4,0.1904]
[1646461920848,0.69360821,2628.8,2628.4,0.1904]
[1646461921248,4.19360821,2628.8,2628.4,0.1904]
[1646461921689,0.69360821,2628.8,2628.4,0.1904]
[1646461929992,0.69360821,2628.8,2628.5,0.28184415]
[1646461930997,0.69360821,2628.8,2628.5,0.28091758]
[1646461932398,0.68347307,2628.8,2628.5,0.28091758]
[1646461932597,0.68347307,2628.8,2628.4,0.1904]
[1646461935948,13.96374795,2628.9,2628.3,0.26238372]
[1646461936148,12.52916353,2628.7,2628.3,0.26238372]
[1646461936795,12.52916353,2628.7,2628.3,0.25967816]
[1646461936999,12.52916353,2628.7,2628.4,0.1904]
[1646461937197,0.92916353,2628.7,2628.4,0.1904]
[1646461937398,0.92916353,2628.8,2628.4,0.1904]
[1646461938003,1.0,2628.9,2628.4,0.1904]
[1646461938300,14.64567942,2628.9,2628.4,0.1904]
[1646461938999,1.92916353,2628.9,2628.4,0.1904]
[1646461939398,13.52916353,2628.9,2628.4,0.1904]
[1646461939900,13.52916353,2628.9,2628.3,0.26238372]
[1646461939901,11.6,2628.6,2628.3,0.26238372]
[1646461940348,11.6,2628.6,2628.3,0.25967816]
[1646461940554,1.90278911,2628.7,2628.3,0.25967816]
[1646461940753,0.97362558,2628.7,2628.3,0.26238372]
[1646461941556,0.97362558,2628.7,2628.3,0.25967816]
[1646461941756,0.97362558,2628.7,2628.3,0.26248069]
[1646461942359,0.70102698,2628.6,2628.3,0.26248069]
[1646461942862,0.70102698,2628.7,2628.3,0.25967816]
[1646461943060,0.70102698,2628.7,2628.3,0.26248065]
[1646461943459,0.70102698,2628.7,2628.3,1.21444175]
[1646461943861,0.92916353,2629.0,2628.4,3.5]
[1646461944105,0.70102698,2629.2,2628.4,4.76838554]
[1646461944498,0.70102698,2629.2,2628.5,1.1420671]
[1646461944499,0.70102698,2629.0,2628.5,1.1420671]
[1646461944699,0.70102698,2628.9,2628.6,0.91764277]
[1646461944897,2.13853644,2629.6,2628.6,0.91764277]
[1646461944898,0.70102698,2629.0,2628.6,0.91764277]
[1646461945096,0.70102698,2629.1,2628.6,0.91764277]
[1646461945999,0.70102698,2629.1,2628.5,1.9034371]
[1646461947400,0.70102698,2629.1,2628.5,0.9517271]
[1646461947401,0.70102698,2628.9,2628.5,0.9517271]
[1646461947602,11.6,2629.1,2628.5,0.9517271]
[1646461947603,0.70102698,2628.8,2628.5,0.9517271]
[1646461947845,0.70102698,2628.9,2628.5,0.9517271]
[1646461948645,0.70102698,2629.0,2628.5,0.9517271]
[1646461949447,0.70102698,2629.1,2628.5,0.9517271]
[1646461950347,0.70102698,2629.1,2628.5,4.4517271]
[1646461950550,0.70102698,2629.1,2628.5,0.9517271]
[1646461950752,0.70102698,2629.2,2628.5,4.4517271]
[1646461950951,0.70102698,2629.2,2628.6,0.27586886]
[1646461951150,0.70102698,2629.2,2628.7,1.9035628]
[1646461951350,0.70102698,2629.2,2628.8,0.27586886]
[1646461951603,1.98055937,2629.1,2628.8,0.27586886]
[1646461951794,1.27953239,2629.0,2628.8,0.27586886]
[1646461951996,1.27953239,2628.9,2628.8,0.27586886]
[1646461952398,0.70102698,2629.1,2628.8,0.27586886]
[1646461952596,1.98055937,2629.1,2628.8,0.27586886]
[1646461952994,1.98055937,2629.0,2628.8,0.27586886]
[1646461953195,1.27953239,2628.9,2628.8,0.27586886]
[1646461953695,0.70102698,2629.0,2628.8,0.27586886]
[1646461954296,1.98055937,2629.0,2628.8,0.27586886]
[1646461954497,1.27953239,2628.9,2628.8,0.27586886]
[1646461954899,0.70102698,2629.0,2628.8,0.27586886]
[1646461956081,0.00081205,2628.8,2628.7,1.9035628]
[1646461956482,0.00081205,2628.8,2628.7,2.17943691]
[1646461956682,0.00081205,2628.8,2628.7,1.9035628]
[1646461956983,0.00081205,2628.8,2628.7,2.17945392]
[1646461957184,0.00081205,2628.8,2628.7,2.17945391]
[1646461957385,0.00081205,2628.8,2628.7,2.17945756]
[1646461957586,0.00081205,2628.8,2628.7,1.9035628]
[1646461957784,0.00081205,2628.8,2628.7,2.17946057]
[1646461958083,0.00081205,2628.8,2628.7,2.17945264]
[1646461959897,1.28034444,2628.8,2628.7,2.17945264]
[1646461960100,1.28034444,2628.8,2628.7,2.17940689]
[1646461960296,1.28034444,2628.8,2628.7,1.9035628]
[1646461960501,0.00081205,2628.8,2628.7,0.2758191]
[1646461960700,0.00081205,2628.8,2628.6,0.9517745]
[1646461960900,1.28034444,2628.8,2628.7,3.77565473]
[1646461961101,1.27894323,2628.8,2628.7,0.27565473]
[1646461961304,1.27915391,2628.8,2628.7,0.27565473]
[1646461961500,1.2791525,2628.8,2628.7,0.27565473]
[1646461961700,1.27843152,2628.8,2628.7,1.48724983]
[1646461961903,1.27842676,2629.3,2628.7,1.48724983]
[1646461962103,1.27842676,2629.3,2628.8,0.27565473]
[1646461963152,1.27842676,2629.3,2628.9,1.22730473]
[1646461963351,1.27842676,2629.3,2629.0,2.17898153]
[1646461963551,1.27842676,2629.3,2629.0,1.9033268]
[1646461964251,1.27842676,2629.3,2629.1,0.27543508]
[1646461964452,1.27842676,2629.3,2629.0,1.19104014]
[1646461964654,1.27842676,2629.3,2629.1,0.30626925]
[1646461972651,1.27842676,2629.3,2629.0,0.23937704]
[1646461974599,1.27842676,2629.3,2629.1,0.30596466]
[1646461975903,1.27842676,2629.3,2629.0,0.23937704]
[1646461978555,8.82049941,2629.7,2629.0,0.23937704]
[1646461978556,0.70102698,2629.8,2629.2,5.1815]
[1646461978754,0.70102698,2630.1,2629.4,1.9025186]
[1646461978952,2.2885,2630.2,2629.5,3.5]
[1646461978953,0.70102698,2630.2,2629.5,3.5]
[1646461979257,0.00273695,2630.2,2629.5,4.8815]
[1646461979454,0.00273695,2630.2,2630.0,0.95105]
[1646461979655,0.89198698,2630.7,2630.1,7.4]
[1646461979850,0.70198698,2630.9,2630.1,10.30196]
[1646461980050,0.70198698,2630.9,2630.2,1.9019476]
[1646461980454,0.00096,2630.9,2630.3,1.13721562]
[1646461980652,0.70102698,2631.0,2630.3,1.13721562]
[1646461980855,0.70102698,2631.0,2630.2,1.9019476]
[1646461981052,0.70102698,2631.0,2630.2,2.8529276]
[1646461981252,0.70102698,2631.0,2630.3,0.9509738]
[1646461981453,0.70102698,2631.0,2630.4,2.8529013]
[1646461982293,1.2152943,2630.9,2630.4,2.8529013]
[1646461982898,1.91632128,2630.9,2630.4,2.8529013]
[1646461983101,0.70102698,2630.9,2630.4,2.8529013]
[1646461983900,1.00096,2631.1,2630.4,2.8529013]
[1646461983901,0.0027374,2630.8,2630.4,2.8529013]
[1646461984501,0.0027374,2630.8,2630.4,1.18967167]
[1646461984902,0.00096,2631.0,2630.4,1.18967167]
[1646461985102,0.00279965,2630.7,2630.4,1.18967167]
[1646461985968,1.13762915,2630.9,2630.4,1.18967167]
[1646461986167,1.83865613,2630.9,2630.3,0.9509738]
[1646461986367,0.00279966,2630.7,2630.3,0.9509738]
[1646461987169,0.00096,2630.9,2630.3,0.9509738]
[1646461987367,12.30102698,2631.0,2630.3,0.9509738]
[1646461987571,0.00279968,2630.6,2630.3,0.9509738]
[1646461988373,1.07897334,2630.7,2630.3,0.9509738]
[1646461988773,0.00272581,2630.6,2630.3,0.9509738]
[1646461989397,0.00096,2630.9,2630.4,1.90203]
[1646461989698,0.00096,2631.1,2630.4,1.90203]
[1646461989897,5.37462698,2631.2,2630.4,1.90203]
[1646461989898,1.17456,2631.2,2630.4,1.90203]
[1646461990097,1.17456,2631.2,2630.5,0.9509646]
[1646461990298,1.17456,2631.2,2630.6,1.08851645]
[1646461990502,1.1736,2631.2,2630.6,2.03947645]
[1646461990904,1.1736,2631.2,2630.6,0.95096]
[1646461991505,1.1736,2631.2,2630.5,0.9509646]
[1646461991703,1.87462698,2631.2,2630.5,0.9509646]
[1646461992304,1.22993318,2630.9,2630.4,1.9019291]
[1646461992705,0.00273764,2631.0,2630.4,1.9019291]
[1646461993345,0.00096,2631.1,2630.4,1.9019291]
[1646461993547,0.00273769,2630.8,2630.4,1.9019291]
[1646461994544,0.00096,2631.0,2630.4,1.9019291]
[1646461994750,0.00273772,2630.7,2630.4,1.9019291]
[1646461995750,0.00096,2631.0,2630.4,1.9019291]
[1646461995951,0.00273437,2630.7,2630.4,1.9019291]
[1646461996807,0.00096,2631.1,2630.4,1.9019291]
[1646461997005,1.5551,2631.2,2630.5,2.8531679]
[1646461997006,1.17456,2631.2,2630.5,2.8531679]
[1646461997207,0.00273437,2630.7,2630.5,2.8531679]
[1646461998009,1.17456,2631.2,2630.5,2.8531679]
[1646461998208,1.17456,2631.2,2630.7,0.950958]
[1646461998410,2.68206,2631.3,2630.7,0.950958]
[1646461998610,1.18286795,2631.2,2630.7,0.950958]
[1646461999009,1.18286795,2631.2,2630.8,0.95095]
[1646461999208,1.18286795,2631.1,2630.8,0.95095]
[1646461999410,1.18286795,2631.0,2630.8,0.95095]
[1646461999609,1.0454992,2631.3,2630.8,0.95095]
[1646461999610,1.18286795,2630.9,2630.8,0.95095]
[1646461999809,0.00273479,2631.1,2630.8,0.95095]
[1646462000010,1.20237116,2630.9,2630.7,0.950958]
[1646462000212,1.18286795,2630.8,2630.7,0.950958]
[1646462001054,1.18286795,2630.8,2630.5,1.9021179]
[1646462001463,0.00273483,2630.9,2630.6,0.9510458]
[1646462001656,1.18281148,2631.1,2630.6,1.9020458]
[1646462001854,0.00273488,2630.8,2630.6,1.9020458]
[1646462002055,0.00273488,2630.8,2630.6,0.9510458]
[1646462002955,1.18281148,2630.8,2630.6,0.9510458]
[1646462003155,1.18281148,2630.7,2630.6,0.9510458]
[1646462003755,0.00273479,2630.8,2630.6,0.9510458]
[1646462004199,1.18419558,2631.1,2630.6,0.9510458]